bitfinex-derivatives/quotes_BTCF0:USTF0_20241120
["timestamp","ask_amount","ask_price","bid_price","bid_amount"]
[1732119475938,0.08969806,94029.0,94028.0,0.25458194]
[1732119476228,0.08969806,94029.0,94028.0,0.25452854]
[1732119476429,0.10600482,94029.0,94028.0,0.25452854]
[1732119476738,0.08969806,94029.0,94028.0,9.42e-05]
[1732119477214,0.08969806,94029.0,94028.0,0.25449128]
[1732119477215,0.053113,94029.0,94028.0,0.25449128]
[1732119477417,0.09016903,94029.0,94028.0,0.25449128]
[1732119477718,0.42551244,94029.0,94028.0,9.42e-05]
[1732119478018,0.05312,94018.0,94016.0,0.25439708]
[1732119478224,0.75865688,94017.0,94013.0,0.00159524]
[1732119478420,0.0533512,94016.0,94013.0,0.00159524]
[1732119478621,0.053122,94014.0,94013.0,0.25599232]
[1732119478823,0.09017888,94014.0,94013.0,0.25599232]
[1732119479022,0.1064732,94014.0,94013.0,0.25599232]
[1732119479219,0.09031407,94014.0,94013.0,0.00159524]
[1732119479417,0.10660839,94014.0,94013.0,0.00159524]
[1732119479628,0.03719207,94014.0,94013.0,0.20924102]
[1732119479822,0.3608,94035.0,94013.0,0.47523902]
[1732119479823,0.3608,94023.0,94013.0,0.47523902]
[1732119480020,0.3608,94023.0,94017.0,0.31771674]
[1732119480228,0.3608,94023.0,94016.0,0.31771674]
[1732119480524,0.3608,94023.0,94022.0,0.2541789]
[1732119480724,0.3608,94023.0,94018.0,0.05312]
[1732119481027,0.3608,94023.0,94015.0,0.31771674]
[1732119481232,0.3608,94023.0,94016.0,0.31771674]
[1732119481437,0.3608,94023.0,94020.0,0.02125028]
[1732119481737,0.053119,94019.0,94018.0,0.20492]
[1732119481930,0.3608,94019.0,94018.0,0.20492]
[1732119482317,0.3608,94019.0,94018.0,0.45908042]
[1732119482524,0.413919,94019.0,94018.0,0.20492]
[1732119484015,0.413919,94019.0,94015.0,0.02124816]
[1732119484016,0.053121,94016.0,94015.0,0.02124816]
[1732119484220,0.053121,94016.0,94009.0,0.25416042]
[1732119484221,0.053122,94014.0,94009.0,0.25416042]
[1732119484517,0.053126,94006.0,94005.0,7.917e-05]
[1732119484719,0.413926,94006.0,94005.0,7.917e-05]
[1732119484937,0.733046,94006.0,94005.0,7.917e-05]
[1732119485124,0.733046,94006.0,93986.0,0.31771674]
[1732119485125,0.31912,94005.0,93984.0,0.2838296]
[1732119485433,0.3608,93985.0,93983.0,0.1905522]
[1732119485631,0.3608,93985.0,93975.0,0.053144]
[1732119485632,0.3608,93985.0,93980.0,0.1905522]
[1732119485832,0.3608,93982.0,93976.0,0.05008805]
[1732119486019,0.3608,93982.0,93980.0,0.00010404]
[1732119486227,0.3608,93982.0,93981.0,0.19034462]
[1732119486731,0.01626841,94000.0,93981.0,0.15452378]
[1732119486732,0.053134,93994.0,93981.0,0.15452378]
[1732119486923,0.3608,93982.0,93981.0,0.15452378]
[1732119487236,0.053138,93986.0,93980.0,0.00010404]
[1732119487429,0.3608,93981.0,93980.0,0.00010404]
[1732119488736,0.3608,93990.0,93980.0,0.00010404]
[1732119488737,0.3608,93990.0,93982.0,0.05314]
[1732119488923,0.3608,93989.0,93980.0,0.00010404]
[1732119489125,0.3608,93981.0,93980.0,0.00010404]
[1732119489930,0.38587821,93981.0,93980.0,0.00010404]
[1732119491039,0.38587821,93981.0,93957.0,0.2114]
[1732119491040,0.053149,93966.0,93957.0,0.2114]
[1732119491332,0.7216,93962.0,93957.0,0.24063018]
[1732119492032,0.01133132,93961.0,93958.0,0.00010397]
[1732119492235,0.3608,93971.0,93960.0,0.20767578]
[1732119492536,0.053151,93962.0,93958.0,0.00010397]
[1732119492835,0.01064615,93961.0,93958.0,0.00010397]
[1732119493028,0.3608,93959.0,93958.0,0.00010397]
[1732119495037,0.3608,93963.0,93958.0,0.00010397]
[1732119495256,0.3608,93970.0,93960.0,0.18988605]
[1732119495561,0.3608,93970.0,93958.0,0.00010397]
[1732119495562,0.3608,93970.0,93969.0,0.10139478]
[1732119496059,0.3608,93979.0,93969.0,0.10139478]
[1732119496266,0.3608,93979.0,93978.0,0.10139478]
[1732119496558,0.0001012,93981.0,93979.0,0.053142]
[1732119496754,0.3608,93998.0,93979.0,0.3192]
[1732119496954,0.3657,94011.0,93997.0,0.10139478]
[1732119496955,0.3608,94011.0,93997.0,0.10139478]
[1732119497169,0.3608,94011.0,94001.0,0.1895144]
[1732119497170,0.10139478,94011.0,94001.0,0.1895144]
[1732119497350,0.3608,94008.0,94003.0,0.1895144]
[1732119497654,0.3608,94008.0,94001.0,0.15465806]
[1732119497924,9.559e-05,94002.0,94001.0,0.15465806]
[1732119498271,9.559e-05,94002.0,94001.0,0.40881848]
[1732119498477,0.3608,94021.0,94011.0,0.053123]
[1732119498665,0.3608,94021.0,94012.0,0.55569542]
[1732119498862,0.3608,94013.0,94012.0,0.21144]
[1732119499198,0.3608,94021.0,94012.0,0.21144]
[1732119499350,0.3608,94013.0,94012.0,0.24083583]
[1732119500063,8.65e-05,94019.0,94015.0,0.053121]
[1732119500263,8.65e-05,94019.0,94018.0,0.20777806]
[1732119500458,8.65e-05,94019.0,94018.0,0.15465806]
[1732119501172,0.3608,94032.0,94030.0,0.053113]
[1732119501357,0.0015959,94043.0,94018.0,0.47373806]
[1732119501358,0.0015959,94043.0,94037.0,0.053109]
[1732119501553,0.3608,94062.0,94042.0,0.15465806]
[1732119501778,0.3608,94062.0,94058.0,0.15465806]
[1732119502167,0.00221,94080.0,94058.0,0.15465806]
[1732119502168,0.00012677,94072.0,94058.0,0.15465806]
[1732119502354,0.00012677,94072.0,94070.0,0.15465806]
[1732119502625,0.00012677,94072.0,94071.0,0.2114]
[1732119502747,0.00208323,94080.0,94079.0,0.053085]
[1732119503056,0.3608,94109.0,94079.0,0.053085]
[1732119503057,0.0049,94104.0,94079.0,0.30931612]
[1732119503262,0.3608,94109.0,94090.0,0.20773706]
[1732119503263,0.3657,94109.0,94090.0,0.20773706]
[1732119503458,0.3657,94119.0,94099.0,0.15465806]
[1732119503657,0.0049,94119.0,94118.0,0.15465806]
[1732119503863,0.0001301,94127.0,94118.0,0.15465806]
[1732119504053,0.0049,94143.0,94126.0,0.30931612]
[1732119504054,0.3608,94141.0,94126.0,0.30931612]
[1732119504253,0.3608,94141.0,94140.0,0.15465806]
[1732119504451,0.3608,94141.0,94112.0,0.3608]
[1732119504662,0.053063,94120.0,94113.0,0.21132]
[1732119504953,0.3608,94117.0,94113.0,0.21132]
[1732119505169,0.3608,94117.0,94116.0,0.02125267]
[1732119505352,0.413864,94117.0,94116.0,0.02125267]
[1732119505563,0.00011187,94120.0,94116.0,0.02125267]
[1732119505564,0.3608,94118.0,94116.0,0.02125267]
[1732119505971,0.41397487,94120.0,94116.0,0.02125267]
[1732119506159,0.00011187,94120.0,94116.0,0.02125267]
[1732119506568,0.00011187,94120.0,94116.0,0.07431667]
[1732119506862,0.3608,94125.0,94116.0,0.02125267]
[1732119507063,0.053066,94113.0,94112.0,0.15465806]
[1732119507509,0.053066,94113.0,94100.0,0.02125267]
[1732119507510,0.3608,94113.0,94103.0,0.15465806]
[1732119507761,0.3608,94104.0,94103.0,0.37317806]
[1732119508163,0.053073,94100.0,94099.0,0.18842871]
[1732119508355,0.053073,94100.0,94084.0,0.31387243]
[1732119508356,0.413873,94100.0,94084.0,0.31387243]
[1732119508564,0.413877,94093.0,94089.0,0.15465806]
[1732119508866,0.413877,94093.0,94084.0,0.31387243]
[1732119509094,0.732717,94093.0,94084.0,0.31387243]
[1732119509467,1.032717,94093.0,94084.0,0.31387243]
[1732119509672,0.053082,94085.0,94084.0,0.31387243]
[1732119509967,0.413882,94085.0,94084.0,0.31387243]
[1732119510265,0.732762,94085.0,94084.0,0.31387243]
[1732119510770,0.3608,94085.0,94084.0,0.31387243]
[1732119511771,0.3608,94097.0,94084.0,0.31387243]
[1732119512072,0.3608,94112.0,94100.0,0.053073]
[1732119512073,0.3608,94101.0,94100.0,0.053073]
[1732119512370,0.3608,94112.0,94103.0,0.053072]
[1732119512759,0.3608,94113.0,94103.0,0.053072]
[1732119512966,0.0015948,94123.0,94096.0,0.51545806]
[1732119513164,0.0015948,94123.0,94096.0,0.54440445]
[1732119513369,0.0015948,94123.0,94116.0,0.15465806]
[1732119513672,0.0015948,94123.0,94117.0,0.21848]
[1732119514058,0.0015948,94123.0,94117.0,0.21648]
[1732119514262,0.00010229,94121.0,94117.0,0.21648]
[1732119514463,0.00010229,94121.0,94118.0,0.053063]
[1732119515063,0.3608,94138.0,94117.0,0.21648]
[1732119515262,0.3608,94138.0,94132.0,0.23602543]
[1732119515564,0.3608,94138.0,94114.0,0.3608]
[1732119515565,0.053056,94131.0,94114.0,0.3608]
[1732119515785,0.3608,94127.0,94114.0,0.3608]
[1732119515962,0.3608,94115.0,94102.0,0.21844]
[1732119516561,0.413865,94115.0,94102.0,0.21844]
[1732119516784,0.3608,94115.0,94102.0,0.21844]
[1732119516962,0.00012635,94126.0,94109.0,0.053068]
[1732119517273,0.00012635,94126.0,94107.0,0.23602543]
[1732119517274,0.00012635,94126.0,94110.0,0.3608]
[1732119517472,0.00012635,94126.0,94114.0,0.053065]
[1732119517673,0.00012635,94126.0,94116.0,0.053064]
[1732119517877,0.3608,94125.0,94123.0,0.05306]
[1732119518070,0.3608,94135.0,94118.0,0.23602543]
[1732119518071,0.3608,94135.0,94118.0,0.59682543]
[1732119518371,0.3608,94145.0,94133.0,0.23602543]
[1732119518581,0.3608,94145.0,94134.0,0.21844]
[1732119519168,0.30132,94155.0,94143.0,0.00010214]
[1732119519374,0.0049,94169.0,94154.0,0.3608]
[1732119519563,0.00551527,94185.0,94168.0,0.3608]
[1732119519564,0.053034,94170.0,94168.0,0.3608]
[1732119519769,0.3608,94169.0,94156.0,0.23602543]
[1732119519969,0.053027,94183.0,94154.0,0.5792]
[1732119519970,0.05304,94159.0,94154.0,0.5792]
[1732119520564,0.3608,94167.0,94154.0,0.5792]
[1732119520882,0.3608,94167.0,94154.0,0.3608]
[1732119521056,0.3608,94156.0,94146.0,0.2184]
[1732119521365,0.053043,94155.0,94146.0,0.2184]
[1732119521757,0.3608,94167.0,94146.0,0.2184]
[1732119521959,0.3608,94167.0,94159.0,0.23602543]
[1732119522157,0.3608,94167.0,94148.0,0.23602543]
[1732119522354,0.3608,94159.0,94148.0,0.23602543]
[1732119522555,0.3608,94159.0,94146.0,0.00056]
[1732119522556,0.053047,94147.0,94146.0,0.00056]
[1732119522761,0.053049,94144.0,94143.0,0.00010214]
[1732119523268,0.371729,94144.0,94131.0,0.00159338]
[1732119523565,0.053055,94132.0,94131.0,0.00159338]
[1732119523962,0.3608,94140.0,94131.0,0.00159338]
[1732119524171,0.0546,94148.0,94139.0,0.23602543]
[1732119524172,0.053048,94145.0,94139.0,0.23602543]
[1732119524369,7.782e-05,94144.0,94139.0,0.23602543]
[1732119524795,0.05305,94141.0,94139.0,0.23602543]
[1732119525481,0.05305,94141.0,94137.0,0.00011534]
[1732119525482,0.053052,94138.0,94137.0,0.00011534]
[1732119525823,0.06385298,94138.0,94137.0,0.00011534]
[1732119526072,0.38253281,94138.0,94137.0,0.00011534]
[1732119526778,0.69974385,94138.0,94131.0,0.00159338]
[1732119527070,0.053066,94113.0,94103.0,0.23602543]
[1732119527280,0.053056,94131.0,94103.0,0.23602543]
[1732119527281,0.06386781,94112.0,94103.0,0.23602543]
[1732119527490,0.053067,94112.0,94111.0,0.053067]
[1732119527659,0.0108867,94112.0,94103.0,0.23602543]
[1732119527977,0.02830571,94111.0,94105.0,0.05307]
[1732119528278,0.053069,94108.0,94107.0,0.053069]
[1732119528479,0.0639557,94108.0,94107.0,0.053069]
[1732119528773,0.053071,94105.0,94103.0,0.00010599]
[1732119529014,0.38904493,94104.0,94103.0,0.00010599]
[1732119529185,0.053081,94087.0,94085.0,0.00159412]
[1732119529366,0.0108867,94086.0,94085.0,0.00159412]
[1732119530268,0.0284689,94086.0,94085.0,0.00159412]
[1732119530466,0.02856643,94086.0,94085.0,0.00159412]
[1732119531669,0.02856643,94086.0,94084.0,0.053082]
[1732119531869,0.0284689,94085.0,94084.0,0.053082]
[1732119532197,0.3722,94122.0,94084.0,0.32923319]
[1732119532381,0.2184,94148.0,94084.0,0.32923319]
[1732119532382,0.0049,94124.0,94109.0,0.23602543]
[1732119532666,0.053058,94128.0,94116.0,0.413864]
[1732119532873,0.053058,94128.0,94121.0,0.23602543]
[1732119533173,7.584e-05,94125.0,94121.0,0.23602543]
[1732119533565,7.584e-05,94125.0,94124.0,0.3608]
[1732119537668,0.053068,94110.0,94098.0,0.23602543]
[1732119537964,0.053066,94113.0,94098.0,0.23602543]
[1732119538249,7.584e-05,94125.0,94098.0,0.23602543]
[1732119538250,0.053069,94108.0,94098.0,0.23602543]
[1732119538508,7.584e-05,94125.0,94098.0,0.23602543]
[1732119538651,0.053064,94118.0,94110.0,0.23602543]
[1732119538848,0.053063,94119.0,94110.0,0.23602543]
[1732119539357,0.053063,94119.0,94110.0,0.22602543]
[1732119539645,7.584e-05,94125.0,94110.0,0.22602543]
[1732119539855,7.584e-05,94125.0,94115.0,0.053065]
[1732119540440,7.584e-05,94125.0,94123.0,0.05306]
[1732119540743,0.05306,94124.0,94120.0,0.21452]
[1732119541451,7.584e-05,94125.0,94123.0,0.05306]
[1732119541951,0.01807644,94124.0,94123.0,0.05306]
[1732119542691,0.0054,94160.0,94122.0,0.3608]
[1732119542692,0.0054,94160.0,94124.0,0.31872]
[1732119542845,0.3608,94161.0,94122.0,0.3608]
[1732119542846,0.0162594,94149.0,94143.0,0.3608]
[1732119543152,0.02479529,94148.0,94143.0,0.3608]
[1732119543354,0.02479529,94147.0,94143.0,0.3608]
[1732119543545,0.02479529,94146.0,94145.0,0.00010668]
[1732119544042,0.03632381,94146.0,94143.0,0.32290668]
[1732119544249,0.03632381,94145.0,94143.0,0.32290668]
[1732119544461,0.03632381,94144.0,94143.0,0.37595568]
[1732119544659,0.00663206,94144.0,94143.0,1.1746599]
[1732119544957,7.534e-05,94150.0,94149.0,0.053046]
[1732119545940,0.0162594,94177.0,94168.0,0.053035]
[1732119546141,0.0057,94193.0,94170.0,0.053034]
[1732119546142,0.01785321,94172.0,94170.0,0.053034]
[1732119546357,0.0066304,94171.0,94170.0,0.053034]
[1732119547047,0.0066304,94171.0,94169.0,0.3608]
[1732119547261,0.3608,94183.0,94169.0,0.3608]
[1732119547262,0.3608,94203.0,94170.0,0.31856]
[1732119547450,0.0066294,94187.0,94186.0,0.053025]
[1732119547649,0.1,94200.0,94186.0,0.23602543]
[1732119547910,0.1,94200.0,94190.0,0.053022]
[1732119548748,0.1,94200.0,94187.0,0.3608]
[1732119548954,0.1,94200.0,94195.0,0.41382]
[1732119549144,0.1,94200.0,94198.0,0.23602543]
[1732119549881,0.1,94200.0,94195.0,0.41382]
[1732119549882,0.1,94200.0,94195.0,0.3608]
[1732119550061,0.1,94200.0,94189.0,0.57524]
[1732119550251,0.05302,94195.0,94189.0,0.21444]
[1732119550464,0.1,94200.0,94191.0,0.23602543]
[1732119550972,0.1,94200.0,94189.0,0.57524]
[1732119551258,0.1,94200.0,94193.0,0.053021]
[1732119551471,0.1,94200.0,94194.0,0.05302]
[1732119551773,0.1,94200.0,94189.0,0.3608]
[1732119551963,0.3608,94193.0,94176.0,0.25724778]
[1732119552262,0.413826,94185.0,94177.0,0.2144]
[1732119552449,0.053029,94179.0,94177.0,0.2144]
[1732119552649,0.3608,94185.0,94177.0,0.2144]
[1732119552849,0.053029,94179.0,94177.0,0.2144]
[1732119553064,0.053033,94172.0,94171.0,0.3608]
[1732119553257,0.053033,94172.0,94171.0,0.2144]
[1732119553850,0.053035,94168.0,94167.0,0.00159265]
[1732119554051,0.413835,94168.0,94167.0,0.00159265]
[1732119554458,0.3608,94168.0,94167.0,0.00159265]
[1732119554664,0.053034,94170.0,94167.0,0.05462865]
[1732119555155,0.053034,94170.0,94167.0,0.00159265]
[1732119555361,0.3608,94177.0,94170.0,0.053034]
[1732119555560,0.3608,94177.0,94167.0,0.00159265]
[1732119555763,0.00159349,94192.0,94173.0,0.23602543]
[1732119555961,0.00159349,94192.0,94188.0,0.053023]
[1732119556152,0.00159349,94192.0,94191.0,0.053022]
[1732119557463,0.00011724,94201.0,94199.0,0.053018]
[1732119559059,0.0049,94223.0,94200.0,0.053017]
[1732119559251,0.053001,94229.0,94217.0,0.23602543]
[1732119559466,0.01094682,94228.0,94217.0,0.23602543]
[1732119559768,0.053002,94227.0,94217.0,0.23602543]
[1732119559965,0.053003,94226.0,94217.0,0.23602543]
[1732119560265,0.05309032,94225.0,94217.0,0.23602543]
[1732119560470,8.732e-05,94225.0,94217.0,0.23602543]
[1732119561463,0.053007,94218.0,94217.0,0.23602543]
[1732119561768,0.053007,94218.0,94216.0,0.00011205]
[1732119561769,0.053007,94217.0,94216.0,0.00011205]
[1732119562067,0.413807,94217.0,94216.0,0.00011205]
[1732119562760,0.42480513,94217.0,94216.0,0.00011205]
[1732119562966,0.413807,94217.0,94216.0,0.00011205]
[1732119563168,0.053007,94217.0,94216.0,0.00011205]
[1732119563367,0.053004,94223.0,94216.0,0.00011205]
[1732119563669,8.732e-05,94225.0,94216.0,0.00011205]
[1732119563851,0.053005,94222.0,94216.0,0.05312005]
[1732119564095,0.053005,94222.0,94216.0,0.00011205]
[1732119564260,0.053005,94222.0,94219.0,0.053006]
[1732119564569,0.053007,94218.0,94216.0,0.00011205]
[1732119564872,0.3608,94217.0,94216.0,0.00011205]
[1732119565562,0.01085108,94217.0,94208.0,0.23602543]
[1732119565772,8.732e-05,94225.0,94208.0,0.59682543]
[1732119565773,0.053009,94214.0,94208.0,0.59682543]
[1732119565986,0.053009,94214.0,94213.0,0.05301]
[1732119566271,0.053009,94214.0,94209.0,0.053012]
[1732119566456,0.053007,94218.0,94212.0,0.05301]
[1732119566654,8.732e-05,94225.0,94210.0,9.868e-05]
[1732119566655,0.05301,94212.0,94210.0,9.868e-05]
[1732119566865,0.05301,94212.0,94211.0,0.15396989]
[1732119567266,8.732e-05,94225.0,94217.0,0.053007]
[1732119567464,8.732e-05,94225.0,94210.0,9.868e-05]
[1732119567465,0.053005,94222.0,94220.0,0.15396989]
[1732119567765,0.05301,94213.0,94212.0,0.15396989]
[1732119568275,0.053005,94221.0,94218.0,0.053007]
[1732119568576,8.732e-05,94225.0,94220.0,0.15396989]
[1732119568577,0.053005,94222.0,94220.0,0.15396989]
[1732119568758,0.01083231,94221.0,94220.0,0.15396989]
[1732119569165,0.01083231,94221.0,94210.0,0.15406857]
[1732119569366,0.053011,94211.0,94210.0,0.15406857]
[1732119569576,0.053011,94211.0,94210.0,9.868e-05]
[1732119569961,0.38220751,94211.0,94197.0,0.0286461]
[1732119570162,0.38220751,94211.0,94183.0,0.02121127]
[1732119570163,0.053019,94197.0,94183.0,0.00056]
[1732119570366,0.053019,94197.0,94185.0,0.053025]
[1732119570367,0.053026,94186.0,94185.0,0.053025]
[1732119570670,0.053019,94197.0,94180.0,0.02939454]
[1732119570671,0.053028,94181.0,94180.0,0.02939454]
[1732119570871,0.053028,94181.0,94179.0,0.15396989]
[1732119570872,0.053028,94180.0,94179.0,0.15396989]
[1732119571179,0.053028,94180.0,94179.0,0.23602958]
[1732119571471,0.3608,94188.0,94179.0,0.20711345]
[1732119571667,0.053024,94188.0,94187.0,0.20699389]
[1732119571860,0.053022,94192.0,94191.0,0.053022]
[1732119572465,0.053024,94188.0,94187.0,0.15396989]
[1732119572667,0.3608,94194.0,94187.0,0.15396989]
[1732119572867,0.3608,94208.0,94188.0,0.2072]
[1732119573059,0.053015,94204.0,94203.0,0.15396989]
[1732119573270,0.06367757,94204.0,94203.0,0.15396989]
[1732119574265,0.06367757,94204.0,94203.0,0.14396989]
[1732119574469,0.01066257,94204.0,94203.0,0.19698489]
[1732119574673,0.00159319,94207.0,94206.0,0.053014]
[1732119575670,0.053005,94221.0,94213.0,0.053009]
[1732119575871,0.053005,94221.0,94220.0,0.15396989]
[1732119576075,0.06375774,94221.0,94220.0,0.15396989]
[1732119577372,0.01075274,94221.0,94220.0,0.15396989]
[1732119578271,0.06375774,94221.0,94220.0,0.15396989]
[1732119578774,0.06375774,94221.0,94220.0,0.20697589]
[1732119578775,0.01075274,94221.0,94220.0,0.20697589]
[1732119579568,8.732e-05,94225.0,94220.0,0.20697589]
[1732119579880,0.052996,94237.0,94223.0,0.3608]
[1732119580080,0.01715051,94236.0,94234.0,0.3608]
[1732119580265,0.00159268,94248.0,94234.0,0.3608]
[1732119580473,0.052997,94235.0,94234.0,0.3608]
[1732119580675,0.07014045,94235.0,94234.0,0.15396989]
[1732119580879,0.07022899,94235.0,94234.0,0.15396989]
[1732119581980,0.01723199,94235.0,94234.0,0.15396989]
[1732119582276,8.854e-05,94235.0,94234.0,0.20696789]
[1732119582778,8.854e-05,94235.0,94234.0,0.15396989]
[1732119583078,0.05308554,94235.0,94234.0,0.15396989]
[1732119583774,0.05308554,94235.0,94234.0,0.18314967]
[1732119583979,8.854e-05,94235.0,94234.0,0.18314967]
[1732119584481,8.854e-05,94235.0,94234.0,0.23614767]
[1732119584975,8.854e-05,94235.0,94234.0,0.18314967]
[1732119586268,8.854e-05,94235.0,94234.0,0.55450767]
[1732119586574,8.854e-05,94235.0,94234.0,0.18314967]
[1732119586779,8.854e-05,94235.0,94232.0,0.3608]
[1732119586974,8.854e-05,94235.0,94225.0,0.357]
[1732119586975,0.053002,94226.0,94225.0,0.357]
[1732119587183,8.854e-05,94235.0,94225.0,0.357]
[1732119587184,0.052999,94232.0,94225.0,0.35644]
[1732119587475,0.053001,94228.0,94225.0,0.35644]
[1732119587674,0.053002,94226.0,94225.0,0.35644]
[1732119587883,0.053002,94226.0,94225.0,0.38541563]
[1732119587884,0.0704068,94226.0,94225.0,0.38541563]
[1732119588791,0.0174048,94226.0,94225.0,0.43841863]
[1732119589142,0.107887,94254.0,94225.0,0.43841863]
[1732119589143,0.01628322,94244.0,94225.0,1.1972875]
[1732119589288,0.3722,94262.0,94243.0,0.51476989]
[1732119589289,0.01628322,94253.0,94243.0,0.51476989]
[1732119589471,0.01628322,94258.0,94247.0,0.052991]
[1732119589670,0.01628322,94258.0,94244.0,0.26696]
[1732119589671,0.3608,94262.0,94253.0,0.052987]
[1732119589977,0.3608,94262.0,94261.0,0.15396989]
[1732119590184,0.00010116,94263.0,94262.0,0.052982]
[1732119590482,0.00010116,94263.0,94262.0,0.15396989]
[1732119590792,0.05308316,94263.0,94262.0,0.15396989]
[1732119591171,0.00010116,94263.0,94262.0,0.15396989]
[1732119591672,0.05308316,94263.0,94262.0,0.15396989]
[1732119591873,0.01111733,94263.0,94262.0,0.15396989]
[1732119592079,0.01111733,94263.0,94262.0,0.20695189]
[1732119593174,0.00010116,94263.0,94262.0,0.20695189]
[1732119595184,0.3608,94277.0,94262.0,0.82860989]
[1732119595409,0.052975,94275.0,94274.0,0.15396989]
[1732119595680,0.052975,94275.0,94274.0,0.35432989]
[1732119596087,0.06377256,94275.0,94274.0,0.35432989]
[1732119596380,0.05298,94266.0,94265.0,0.15396989]
[1732119596583,0.3608,94278.0,94262.0,0.37755657]
[1732119596584,0.3608,94269.0,94262.0,0.02888721]
[1732119596783,0.052982,94263.0,94260.0,0.3608]
[1732119596990,0.052982,94263.0,94256.0,0.15396989]
[1732119596991,0.052983,94260.0,94259.0,0.20036]
[1732119597178,0.3608,94269.0,94256.0,0.15396989]
[1732119597506,0.052984,94258.0,94257.0,0.20036]
[1732119597679,0.052985,94257.0,94256.0,0.18330595]
[1732119597869,0.052982,94264.0,94261.0,0.052983]
[1732119598067,0.3608,94269.0,94256.0,0.18330595]
[1732119598280,0.3608,94269.0,94268.0,0.052979]
[1732119598585,0.052976,94273.0,94264.0,0.15396989]
[1732119598769,0.052976,94273.0,94272.0,0.15396989]
[1732119599077,0.3608,94279.0,94263.0,0.15396989]
[1732119599280,0.05298,94266.0,94264.0,0.052981]
[1732119599479,0.3608,94273.0,94265.0,0.05298]
[1732119599675,0.05298,94266.0,94265.0,0.05298]
[1732119600277,0.3608,94278.0,94265.0,0.05298]
[1732119600477,0.052981,94264.0,94263.0,0.15396989]
[1732119600871,0.3608,94266.0,94263.0,0.15396989]
[1732119601077,0.3608,94269.0,94263.0,0.15396989]
[1732119601272,0.3608,94285.0,94278.0,0.052973]
[1732119601273,0.052969,94285.0,94278.0,0.052973]
[1732119601576,0.052969,94285.0,94263.0,0.15396989]
[1732119601577,0.413772,94280.0,94279.0,0.20036]
[1732119601777,0.052972,94280.0,94279.0,0.20036]
[1732119601984,0.413772,94280.0,94279.0,0.20036]
[1732119602169,0.3608,94280.0,94279.0,0.20036]
[1732119602371,0.057,94291.0,94283.0,0.05297]
[1732119602372,0.052968,94287.0,94283.0,0.05297]
[1732119602768,0.057,94291.0,94288.0,0.052967]
[1732119602972,0.057,94291.0,94279.0,0.23009697]
[1732119602973,0.0563,94304.0,94290.0,0.15396989]
[1732119603173,0.4608,94300.0,94297.0,0.052962]
[1732119603383,0.4608,94300.0,94299.0,0.15396989]
[1732119603581,0.4608,94300.0,94299.0,0.35428989]
[1732119603787,0.47115719,94300.0,94299.0,0.35428989]
[1732119603983,0.47115719,94300.0,94299.0,0.34728989]
[1732119604179,0.47117656,94300.0,94299.0,0.34728989]
[1732119604380,0.1,94300.0,94299.0,0.34728989]
[1732119604697,0.0049,94318.0,94299.0,0.34728989]
[1732119604698,0.0049,94318.0,94316.0,0.052951]
[1732119604987,0.052947,94325.0,94313.0,0.052953]
[1732119605290,0.3608,94326.0,94308.0,0.3608]
[1732119605580,0.052948,94323.0,94315.0,0.052952]
[1732119605784,0.3608,94326.0,94322.0,0.15396989]
[1732119606178,0.08901591,94341.0,94322.0,0.15396989]
[1732119606374,0.08901591,94341.0,94331.0,0.15396989]
[1732119606375,0.0103551,94340.0,94331.0,0.15396989]
[1732119606582,0.3608,94332.0,94331.0,0.20691289]
[1732119606772,0.3608,94332.0,94331.0,0.15396989]
[1732119607188,0.413743,94332.0,94327.0,0.052945]
[1732119607378,0.3608,94332.0,94313.0,0.15396989]
[1732119607581,0.3608,94323.0,94313.0,0.15396989]
[1732119607780,0.3608,94323.0,94308.0,0.3608]
[1732119607781,0.052952,94315.0,94314.0,0.20028]
[1732119607982,0.052955,94310.0,94306.0,0.02119586]
[1732119608277,0.0599,94330.0,94307.0,0.20028]
[1732119608278,0.052956,94308.0,94307.0,0.20028]
[1732119608777,0.3608,94312.0,94310.0,0.052955]
[1732119608989,0.3608,94312.0,94303.0,0.02871904]
[1732119609292,0.052961,94300.0,94294.0,0.15460989]
[1732119609478,0.052961,94300.0,94280.0,0.3608]
[1732119609479,0.413761,94300.0,94280.0,0.3608]
[1732119609677,0.413761,94300.0,94291.0,0.0299698]
[1732119610080,0.01079103,94299.0,94291.0,0.0829358]
[1732119610276,0.01079103,94299.0,94293.0,0.052965]
[1732119610481,0.01079103,94299.0,94297.0,0.052962]
[1732119610679,0.01079195,94299.0,94291.0,0.0299698]
[1732119610884,0.01079195,94299.0,94291.0,0.0829348]
[1732119611077,0.3608,94318.0,94308.0,0.052956]
[1732119611078,0.052954,94312.0,94308.0,0.052956]
[1732119611281,0.00159104,94329.0,94310.0,0.3608]
[1732119611487,0.3608,94315.0,94301.0,0.20028]
[1732119611687,0.3608,94304.0,94302.0,0.05296]
[1732119611882,0.00145744,94308.0,94301.0,0.20028]
[1732119611883,0.00145744,94308.0,94306.0,0.052957]
[1732119612080,0.00145744,94308.0,94301.0,0.20028]
[1732119612275,0.00145744,94308.0,94306.0,0.052957]
[1732119612806,0.00145744,94307.0,94306.0,0.052957]
[1732119613093,0.00145744,94307.0,94306.0,0.20692689]
[1732119613790,0.00145744,94307.0,94306.0,0.052957]
[1732119613977,0.00145744,94307.0,94301.0,0.56108]
[1732119613978,0.05296,94303.0,94301.0,0.56108]
[1732119614385,0.00145744,94307.0,94301.0,0.58975683]
[1732119614784,0.3608,94319.0,94301.0,0.58975683]
[1732119614785,0.052959,94303.0,94301.0,0.58975683]
[1732119614980,0.052959,94303.0,94301.0,0.22895683]
[1732119615181,0.052959,94303.0,94298.0,8.329e-05]
[1732119615394,0.052961,94299.0,94298.0,8.329e-05]
[1732119615891,0.05441844,94299.0,94298.0,8.329e-05]
[1732119616890,0.05441844,94299.0,94266.0,0.056]
[1732119616891,0.052974,94277.0,94276.0,0.02118637]
[1732119617081,0.052977,94272.0,94270.0,0.20024]
[1732119617391,0.052977,94272.0,94258.0,0.00056]
[1732119617392,0.413777,94272.0,94258.0,0.00056]
[1732119617592,0.774577,94272.0,94258.0,0.052984]
[1732119617780,0.774577,94272.0,94257.0,0.20024]
[1732119617781,0.052984,94259.0,94257.0,0.20024]
[1732119617982,0.052978,94270.0,94255.0,0.00012554]
[1732119617983,0.052986,94256.0,94255.0,0.00012554]